fUST/lending_fUST_20250716
["ID","MTS","AMOUNT","RATE_DAILY","PERIOD"]
[372436579,1752645036996,-460.0,0.00019178,2]
[372436580,1752645037005,-460.0,0.00019178,2]
[372436581,1752645037016,-460.0,0.00019178,2]
[372436582,1752645037025,-460.0,0.00019178,2]
[372436583,1752645037034,-460.0,0.00019178,2]
[372436584,1752645037044,-462.4764173,0.00019178,2]
[372436585,1752645037056,-460.0,0.00019178,2]
[372436586,1752645037065,-2480.45,0.00019178,2]
[372436587,1752645037075,-460.0,0.00019178,2]
[372436588,1752645037086,-460.0,0.00019178,2]
[372436589,1752645037095,-497.46,0.00019178,2]
[372436590,1752645037107,-460.0,0.00019178,2]
[372436591,1752645037117,-500.0,0.00019178,2]
[372436592,1752645037130,-460.0,0.00019178,2]
[372436593,1752645037141,-460.0,0.00019178,2]
[372436594,1752645037152,-460.0,0.00019178,2]
[372436595,1752645037162,-460.0,0.00019178,2]
[372436596,1752645037173,-460.0,0.00019178,2]
[372436597,1752645037184,-460.0,0.00019178,2]
[372436598,1752645037193,-460.0,0.00019178,2]
[372436599,1752645037203,-460.0,0.00019178,2]
[372436600,1752645037216,-460.0,0.00019178,2]
[372436601,1752645037226,-460.0,0.00019178,2]
[372436602,1752645037236,-460.0,0.00019178,2]
[372436603,1752645037245,-460.0,0.00019178,2]
[372436604,1752645037256,-480.94897287,0.00019178,2]
[372436605,1752645037266,-460.0,0.00019178,2]
[372436606,1752645037275,-460.0,0.00019178,2]
[372436607,1752645037286,-460.0,0.00019178,2]
[372436608,1752645037295,-460.0,0.00019178,2]
[372436609,1752645037305,-320.27215787,0.00019178,2]
[372436610,1752645037315,-460.0,0.00019178,2]
[372436611,1752645037325,-460.0,0.00019178,2]
[372436612,1752645037335,-460.0,0.00019178,2]
[372436613,1752645037344,-460.0,0.00019178,2]
[372436614,1752645037353,-374.42017964,0.00019178,2]
[372436615,1752645037363,-460.0,0.00019178,2]
[372436616,1752645037372,-460.0,0.00019178,2]
[372436617,1752645037382,-560.04,0.00019178,2]
[372436618,1752645037391,-460.0,0.00019178,2]
[372436619,1752645037401,-460.0,0.00019178,2]
[372436620,1752645037411,-460.0,0.00019178,2]
[372436624,1752645037627,-460.0,0.00019178,2]
[372436625,1752645037637,-618.93,0.00019178,2]
[372436626,1752645037647,-460.0,0.00019178,2]
[372436627,1752645037656,-460.0,0.00019178,2]
[372436629,1752645037666,-460.0,0.00019178,2]
[372436631,1752645037675,-500.0,0.00019178,2]
[372436633,1752645037684,-1179.90101812,0.00019352,2]
[372436635,1752645037694,-460.0,0.00019452,2]
[372436637,1752645037704,-460.0,0.00019452,2]
[372436638,1752645037713,-460.0,0.00019452,2]
[372436639,1752645037723,-460.0,0.00019452,2]
[372436640,1752645037732,-273.39291174,0.00019452,2]
[372436641,1752645037742,-460.0,0.00019452,2]
[372436642,1752645037751,-460.0,0.00019452,2]
[372436643,1752645037762,-460.0,0.00019452,2]
[372436644,1752645037771,-460.0,0.00019452,2]
[372436645,1752645037780,-460.0,0.00019452,2]
[372436646,1752645037789,-460.0,0.00019452,2]
[372436647,1752645037799,-463.22346233,0.00019452,2]
[372436649,1752645037814,-460.0,0.00019452,2]
[372436651,1752645037831,-499.85843095,0.00019452,2]
[372436653,1752645037840,-460.0,0.00019452,2]
[372436654,1752645037850,-460.0,0.00019452,2]
[372436655,1752645037859,-464.25450075,0.00019452,2]
[372436656,1752645037869,-460.0,0.00019452,2]
[372436657,1752645037878,-460.0,0.00019452,2]
[372436659,1752645037887,-460.0,0.00019452,2]
[372436661,1752645037897,-460.0,0.00019452,2]
[372436663,1752645037906,-460.0,0.00019452,2]
[372436665,1752645037915,-460.0,0.00019452,2]
[372436666,1752645037925,-460.0,0.00019452,2]
[372436668,1752645037935,-460.0,0.00019452,2]
[372436669,1752645037944,-460.0,0.00019452,2]
[372436670,1752645037954,-460.0,0.00019452,2]
[372436671,1752645037963,-460.0,0.00019452,2]
[372436673,1752645037973,-460.0,0.00019452,2]
[372436674,1752645037984,-460.0,0.00019452,2]
[372436676,1752645037994,-460.0,0.00019452,2]
[372436677,1752645038003,-460.0,0.00019452,2]
[372436678,1752645038013,-466.48279146,0.00019452,2]
[372436679,1752645038023,-460.0,0.00019452,2]
[372436680,1752645038031,-461.69748636,0.00019452,2]
[372436681,1752645038041,-460.0,0.00019452,2]
[372436682,1752645038051,-460.0,0.00019452,2]
[372436683,1752645038060,-430.55259077,0.00019452,2]
[372436684,1752645038070,-460.0,0.00019452,2]
[372436685,1752645038079,-460.0,0.00019452,2]
[372436686,1752645038089,-460.0,0.00019452,2]
[372436687,1752645038098,-460.0,0.00019452,2]
[372436688,1752645038108,-460.0,0.00019452,2]
[372436689,1752645038117,-460.0,0.00019452,2]
[372436690,1752645038127,-460.0,0.00019452,2]
[372436692,1752645038136,-465.37457773,0.00019452,2]
[372436694,1752645038146,-460.0,0.00019452,2]
[372436695,1752645038156,-460.0,0.00019452,2]
[372436696,1752645038165,-460.0,0.00019452,2]
[372436697,1752645038175,-460.0,0.00019452,2]
[372436698,1752645038184,-461.3120579,0.00019452,2]
[372436699,1752645038194,-460.0,0.00019452,2]
[372436700,1752645038204,-212.66,0.00019452,2]
[372436701,1752645038216,-460.0,0.00019452,2]
[372436702,1752645038224,-460.0,0.00019452,2]
[372436703,1752645038233,-460.0,0.00019452,2]
[372436704,1752645038242,-460.0,0.00019452,2]
[372436705,1752645038251,-460.0,0.00019452,2]
[372436706,1752645038261,-460.0,0.00019452,2]
[372436707,1752645038270,-460.0,0.00019452,2]
[372436708,1752645038280,-460.0,0.00019452,2]
[372436709,1752645038291,-460.0,0.00019452,2]
[372436710,1752645038301,-460.0,0.00019452,2]
[372436711,1752645038312,-460.0,0.00019452,2]
[372436712,1752645038323,-460.0,0.00019452,2]
[372436713,1752645038334,-460.0,0.00019452,2]
[372436714,1752645038345,-460.0,0.00019452,2]
[372436715,1752645038355,-460.0,0.00019452,2]
[372436716,1752645038367,-460.0,0.00019452,2]
[372436717,1752645038377,-460.0,0.00019452,2]
[372436718,1752645038389,-460.0,0.00019452,2]
[372436719,1752645038400,-463.87056101,0.00019452,2]
[372436720,1752645038411,-460.0,0.00019452,2]
[372436721,1752645038421,-463.06563048,0.00019452,2]
[372436722,1752645038431,-460.0,0.00019452,2]
[372436723,1752645038442,-466.52202714,0.00019452,2]
[372436724,1752645038452,-460.0,0.00019452,2]
[372436725,1752645038462,-460.0,0.00019452,2]
[372436726,1752645038471,-460.0,0.00019452,2]
[372436727,1752645038483,-460.0,0.00019452,2]
[372436728,1752645038493,-461.43667274,0.00019452,2]
[372436729,1752645038503,-460.0,0.00019452,2]
[372436730,1752645038513,-460.0,0.00019452,2]
[372436731,1752645038522,-460.0,0.00019452,2]
[372436732,1752645038533,-460.0,0.00019452,2]
[372436733,1752645038544,-460.0,0.00019452,2]
[372436734,1752645038555,-460.0,0.00019452,2]
[372436735,1752645038566,-460.0,0.00019452,2]
[372436736,1752645038578,-257.85,0.00019452,2]
[372436737,1752645038589,-460.0,0.00019452,2]
[372436738,1752645038599,-460.0,0.00019452,2]
[372436739,1752645038608,-460.0,0.00019452,2]
[372436740,1752645038618,-460.0,0.00019452,2]
[372436741,1752645038627,-483.18,0.00019452,2]
[372436742,1752645038637,-460.0,0.00019452,2]
[372436743,1752645038646,-460.0,0.00019452,2]
[372436744,1752645038655,-460.0,0.00019452,2]
[372436745,1752645038665,-460.0,0.00019452,2]
[372436746,1752645038675,-465.12929942,0.00019452,2]
[372436747,1752645038684,-460.0,0.00019452,2]
[372436748,1752645038693,-461.0345749,0.00019452,2]
[372436749,1752645038703,-589.78,0.00019452,2]
[372436750,1752645038712,-460.0,0.00019452,2]
[372436751,1752645038722,-460.0,0.00019452,2]
[372436752,1752645038731,-460.0,0.00019452,2]
[372436753,1752645038741,-460.0,0.00019452,2]
[372436754,1752645038750,-460.0,0.00019452,2]
[372436755,1752645038760,-460.0,0.00019452,2]
[372436756,1752645038770,-460.0,0.00019452,2]
[372436757,1752645038779,-460.0,0.00019452,2]
[372436758,1752645038788,-460.0,0.00019452,2]
[372436759,1752645038798,-460.0,0.00019452,2]
[372436760,1752645038808,-460.0,0.00019452,2]
[372436761,1752645038817,-460.0,0.00019452,2]
[372436762,1752645038827,-460.0,0.00019452,2]
[372436763,1752645038836,-460.0,0.00019452,2]
[372436764,1752645038849,-460.0,0.00019452,2]
[372436765,1752645038858,-250.46,0.00019452,2]
[372436766,1752645038868,-460.0,0.00019452,2]
[372436767,1752645038878,-460.0,0.00019452,2]
[372436768,1752645038888,-460.0,0.00019452,2]
[372436769,1752645038898,-460.0,0.00019452,2]
[372436770,1752645038908,-460.0,0.00019452,2]
[372436771,1752645038918,-460.0,0.00019452,2]
[372436772,1752645038928,-911.13,0.00019452,2]
[372436773,1752645038937,-294.23829248,0.00019452,2]
[372436774,1752645038947,-188.92951953,0.00019452,2]
[372436775,1752645038957,-460.0,0.00019452,2]
[372436776,1752645038966,-460.0,0.00019452,2]
[372436777,1752645038976,-460.0,0.00019452,2]
[372436778,1752645038986,-460.0,0.00019452,2]
[372436779,1752645038996,-460.0,0.00019452,2]
[372436780,1752645039088,-460.0,0.00019452,2]
[372436781,1752645039107,-460.0,0.00019452,2]
[372436782,1752645039118,-699.88,0.00019452,2]
[372436783,1752645039128,-1915.13,0.00019452,2]
[372436784,1752645039139,-460.0,0.00019452,2]
[372436785,1752645039148,-460.0,0.00019452,2]
[372436786,1752645039158,-896.68,0.00019452,2]
[372436787,1752645039168,-460.0,0.00019452,2]
[372436788,1752645039178,-158.42,0.00019452,2]
[372436789,1752645039187,-460.0,0.00019452,2]
[372436790,1752645039197,-460.0,0.00019452,2]
[372436791,1752645039208,-193.39,0.00019452,2]
[372436792,1752645039219,-460.0,0.00019452,2]
[372436793,1752645039229,-460.0,0.00019452,2]
[372436794,1752645039239,-460.0,0.00019452,2]
[372436795,1752645039248,-460.0,0.00019452,2]
[372436796,1752645039259,-460.0,0.00019452,2]
[372436797,1752645039268,-460.0,0.00019452,2]
[372436798,1752645039280,-460.0,0.00019452,2]
[372436799,1752645039291,-460.0,0.00019452,2]
[372436800,1752645039304,-1658.39,0.00019452,2]
[372436801,1752645039315,-460.0,0.00019452,2]
[372436802,1752645039327,-460.0,0.00019452,2]
[372436803,1752645039337,-460.0,0.00019452,2]
[372436804,1752645039348,-460.0,0.00019452,2]
[372436805,1752645039358,-490.68680693,0.00019452,2]
[372436806,1752645039368,-460.0,0.00019452,2]
[372436807,1752645039378,-460.0,0.00019452,2]
[372436808,1752645039387,-460.0,0.00019452,2]
[372436809,1752645039397,-306.31835517,0.00019452,2]
[372436810,1752645039407,-460.0,0.00019452,2]
[372436811,1752645039417,-815.16,0.00019452,2]
[372436812,1752645039426,-624.58,0.00019452,2]
[372436813,1752645039436,-982.03,0.00019452,2]
[372436814,1752645039446,-597.07,0.00019452,2]
[372436815,1752645039455,-460.0,0.00019452,2]
[372436816,1752645039465,-460.0,0.00019452,2]
[372436817,1752645039475,-460.0,0.00019452,2]
[372436818,1752645039484,-460.0,0.00019452,2]
[372436819,1752645039494,-225.34999022,0.00019452,2]
[372436820,1752645039503,-460.0,0.00019452,2]
[372436821,1752645039513,-173.25920572,0.00019452,2]
[372436822,1752645039523,-460.0,0.00019452,2]
[372436823,1752645039533,-460.0,0.00019452,2]
[372436824,1752645039544,-460.0,0.00019452,2]
[372436825,1752645039554,-460.0,0.00019452,2]
[372436826,1752645039564,-460.0,0.00019452,2]
[372436827,1752645039574,-460.0,0.00019452,2]
[372436828,1752645039583,-1112.63,0.00019452,2]
[372436829,1752645039594,-320.42320784,0.00019452,2]
[372436830,1752645039604,-460.0,0.00019452,2]
[372436832,1752645039614,-460.0,0.00019452,2]
[372436833,1752645039624,-460.0,0.00019452,2]
[372436834,1752645039633,-877.97,0.00019452,2]
[372436835,1752645039643,-460.0,0.00019452,2]
[372436836,1752645039653,-460.0,0.00019452,2]
[372436837,1752645039663,-646.57,0.00019452,2]
[372436838,1752645039674,-460.0,0.00019452,2]
[372436839,1752645039684,-1624.2,0.00019452,2]
[372436840,1752645039694,-770.87,0.00019452,2]
[372436842,1752645039704,-541.32,0.00019452,2]
[372436844,1752645039714,-460.0,0.00019452,2]
[372436845,1752645039724,-561.33,0.00019452,2]
[372436846,1752645039734,-460.0,0.00019452,2]
[372436847,1752645039744,-1510.65,0.00019452,2]
[372436848,1752645039754,-460.0,0.00019452,2]
[372436849,1752645039766,-460.0,0.00019452,2]
[372436850,1752645039776,-460.0,0.00019452,2]
[372436851,1752645039785,-2480.45,0.00019452,2]
[372436852,1752645039795,-460.0,0.00019452,2]
[372436853,1752645039804,-542.46,0.00019452,2]
[372436854,1752645039814,-460.0,0.00019452,2]
[372436855,1752645039823,-460.0,0.00019452,2]
[372436856,1752645039833,-460.0,0.00019452,2]
[372436858,1752645039842,-460.0,0.00019452,2]
[372436859,1752645039852,-460.0,0.00019452,2]
[372436861,1752645039861,-460.0,0.00019452,2]
[372436862,1752645039871,-460.0,0.00019452,2]
[372436863,1752645039879,-460.0,0.00019452,2]
[372436864,1752645039888,-460.0,0.00019452,2]
[372436865,1752645039897,-460.0,0.00019452,2]
[372436866,1752645039906,-618.93,0.00019452,2]
[372436867,1752645039915,-500.0,0.00019452,2]
[372436868,1752645039925,-474.48646027,0.00019473,2]
[372436869,1752645039935,-501.37332697,0.00019473,2]
[372436870,1752645039945,-502.06148707,0.00019473,2]
[372436871,1752645039955,-258.19453501,0.00019473,2]
[372436872,1752645039968,-501.75834765,0.00019473,2]
[372436873,1752645039984,-501.08770502,0.00019473,2]
[372436874,1752645040000,-500.0,0.00019473,2]
[372436875,1752645040013,-501.68789834,0.00019473,2]
[372436876,1752645040027,-500.0,0.00019473,2]
[372436877,1752645040041,-500.0,0.00019473,2]
[372436878,1752645040055,-500.0,0.00019473,2]
[372436880,1752645040070,-501.02319655,0.00019473,2]
[372436882,1752645040085,-500.0,0.00019473,2]
[372436884,1752645040099,-500.0,0.00019473,2]
[372436885,1752645040114,-503.54914706,0.00019473,2]
[372436886,1752645040127,-500.0,0.00019473,2]
[372436887,1752645040141,-500.0,0.00019473,2]
[372436888,1752645040154,-500.59743783,0.00019473,2]
[372436889,1752645040168,-862.11,0.000195,2]
[372436890,1752645040193,-460.0,0.00019726,2]
[372436891,1752645040213,-460.0,0.00019726,2]
[372436892,1752645040228,-460.0,0.00019726,2]
[372436893,1752645040240,-460.0,0.00019726,2]
[372436894,1752645040254,-460.0,0.00019726,2]
[372436895,1752645040269,-460.0,0.00019726,2]
[372436896,1752645040285,-587.64,0.00019726,2]
[372436897,1752645040303,-581.81939396,0.00019726,2]
[372436898,1752645040318,-513.82,0.00019726,2]
[372436899,1752645040336,-460.0,0.00019726,2]
[372436900,1752645040351,-460.0,0.00019726,2]
[372436901,1752645040364,-460.0,0.00019726,2]
[372436902,1752645040375,-460.0,0.00019726,2]
[372436903,1752645040387,-460.0,0.00019726,2]
[372436904,1752645040400,-473.85373631,0.00019726,2]
[372436905,1752645040416,-460.0,0.00019726,2]
[372436906,1752645040430,-468.63971762,0.00019726,2]
[372436907,1752645040440,-460.0,0.00019726,2]
[372436908,1752645040453,-460.0,0.00019726,2]
[372436909,1752645040468,-460.0,0.00019726,2]
[372436910,1752645040482,-460.0,0.00019726,2]
[372436911,1752645040494,-460.0,0.00019726,2]
[372436912,1752645040505,-460.0,0.00019726,2]
[372436913,1752645040518,-460.0,0.00019726,2]
[372436914,1752645040531,-460.0,0.00019726,2]
[372436915,1752645040545,-460.0,0.00019726,2]
[372436916,1752645040559,-460.0,0.00019726,2]
[372436917,1752645040573,-460.0,0.00019726,2]
[372436918,1752645040585,-460.0,0.00019726,2]
[372436919,1752645040599,-460.0,0.00019726,2]
[372436920,1752645040611,-460.0,0.00019726,2]
[372436921,1752645040625,-460.0,0.00019726,2]
[372436922,1752645040637,-460.0,0.00019726,2]
[372436923,1752645040649,-460.0,0.00019726,2]
[372436924,1752645040661,-460.0,0.00019726,2]
[372436925,1752645040673,-460.0,0.00019726,2]
[372436926,1752645040684,-460.0,0.00019726,2]
[372436927,1752645040696,-460.0,0.00019726,2]
[372436928,1752645040709,-460.0,0.00019726,2]
[372436929,1752645040721,-462.87993816,0.00019726,2]
[372436930,1752645040733,-460.0,0.00019726,2]
[372436931,1752645040744,-460.0,0.00019726,2]
[372436932,1752645040756,-460.0,0.00019726,2]
[372436933,1752645040768,-460.0,0.00019726,2]
[372436934,1752645040780,-460.0,0.00019726,2]
[372436935,1752645040792,-460.0,0.00019726,2]
[372436936,1752645040804,-460.0,0.00019726,2]
[372436937,1752645040816,-544.88130584,0.00019726,2]
[372436938,1752645040828,-460.0,0.00019726,2]
[372436939,1752645040840,-460.0,0.00019726,2]
[372436940,1752645040851,-460.0,0.00019726,2]
[372436941,1752645040863,-460.0,0.00019726,2]
[372436942,1752645040875,-460.0,0.00019726,2]
[372436943,1752645040888,-460.0,0.00019726,2]
[372436944,1752645040900,-460.0,0.00019726,2]
[372436945,1752645040913,-460.0,0.00019726,2]
[372436946,1752645040925,-460.0,0.00019726,2]
[372436947,1752645040937,-460.0,0.00019726,2]
[372436948,1752645040950,-460.0,0.00019726,2]
[372436949,1752645040962,-460.0,0.00019726,2]
[372436950,1752645040973,-460.0,0.00019726,2]
[372436951,1752645040986,-460.0,0.00019726,2]
[372436952,1752645040998,-540.0,0.00019726,2]
[372436953,1752645041011,-460.0,0.00019726,2]
[372436954,1752645041024,-460.0,0.00019726,2]
[372436955,1752645041036,-460.0,0.00019726,2]
[372436956,1752645041049,-911.13,0.00019726,2]
[372436957,1752645041061,-460.0,0.00019726,2]
[372436958,1752645041073,-460.0,0.00019726,2]
[372436959,1752645041083,-460.0,0.00019726,2]
[372436960,1752645041223,-460.0,0.00019726,2]
[372436961,1752645041234,-460.0,0.00019726,2]
[372436962,1752645041244,-699.88,0.00019726,2]
[372436963,1752645041255,-1915.13,0.00019726,2]
[372436964,1752645041264,-460.0,0.00019726,2]
[372436965,1752645041275,-595.66,0.00019726,2]
[372436966,1752645041284,-896.68,0.00019726,2]
[372436967,1752645041296,-460.0,0.00019726,2]
[372436968,1752645041307,-460.0,0.00019726,2]
[372436969,1752645041315,-609.63,0.00019726,2]
[372436970,1752645041325,-460.0,0.00019726,2]
[372436971,1752645041335,-460.0,0.00019726,2]
[372436972,1752645041346,-460.0,0.00019726,2]
[372436973,1752645041355,-451.31,0.00019726,2]
[372436974,1752645041365,-460.0,0.00019726,2]
[372436975,1752645041375,-1658.39,0.00019726,2]
[372436976,1752645041384,-460.0,0.00019726,2]
[372436977,1752645041394,-169.13,0.00019726,2]
[372436978,1752645041404,-460.0,0.00019726,2]
[372436979,1752645041413,-460.0,0.00019726,2]
[372436980,1752645041423,-460.0,0.00019726,2]
[372436981,1752645041433,-460.0,0.00019726,2]
[372436982,1752645041443,-815.16,0.00019726,2]
[372436983,1752645041452,-624.58,0.00019726,2]
[372436984,1752645041461,-427.33644975,0.00019726,2]
[372436985,1752645041489,-554.69355025,0.00019726,2]
[372436986,1752645041499,-460.0,0.00019726,2]
[372436987,1752645041507,-460.0,0.00019726,2]
[372436988,1752645041516,-460.0,0.00019726,2]
[372436989,1752645041526,-463.34055893,0.00019726,2]
[372436990,1752645041535,-460.0,0.00019726,2]
[372436991,1752645041545,-460.0,0.00019726,2]
[372436992,1752645041554,-460.0,0.00019726,2]
[372436993,1752645041564,-460.0,0.00019726,2]
[372436994,1752645041573,-460.0,0.00019726,2]
[372436995,1752645041583,-1112.63,0.00019726,2]
[372436996,1752645041592,-527.97990617,0.00019726,2]
[372436997,1752645041602,-460.0,0.00019726,2]
[372436998,1752645041611,-877.97,0.00019726,2]
[372436999,1752645041621,-470.9,0.00019726,2]
[372437000,1752645041630,-646.57,0.00019726,2]
[372437001,1752645041639,-1624.2,0.00019726,2]
[372437002,1752645041649,-770.87,0.00019726,2]
[372437003,1752645041659,-499.26448098,0.00019726,2]
[372437004,1752645041668,-460.0,0.00019726,2]
[372437005,1752645041678,-1510.65,0.00019726,2]
[372437006,1752645041687,-460.0,0.00019726,2]
[372437007,1752645041697,-514.7282507,0.00019726,2]
[372437008,1752645041707,-460.0,0.00019726,2]
[372437009,1752645041716,-2480.45,0.00019726,2]
[372437010,1752645041725,-463.08257825,0.00019726,2]
[372437011,1752645041735,-460.0,0.00019726,2]
[372437012,1752645041744,-460.0,0.00019726,2]
[372437013,1752645041753,-194.14,0.00019726,2]
[372437014,1752645041763,-460.0,0.00019726,2]
[372437015,1752645041773,-460.0,0.00019726,2]
[372437016,1752645041782,-280.54,0.00019726,2]
[372437017,1752645041792,-460.0,0.00019726,2]
[372437018,1752645041801,-460.0,0.00019726,2]
[372437019,1752645041811,-207.78791109,0.00019726,2]
[372437020,1752645041821,-618.93,0.00019726,2]
[372437021,1752645041831,-420.0,0.00019771,2]
[372437022,1752645041840,-500.0,0.00019773,2]
[372437023,1752645041850,-150.0,0.00019863,2]
[372437024,1752645041859,-1680.0,0.00019868,2]
[372437025,1752645041869,-160.0,0.00019976,2]
[372437026,1752645041878,-460.0,0.0002,2]
[372437027,1752645041888,-460.0,0.0002,2]
[372437028,1752645041898,-460.0,0.0002,2]
[372437029,1752645041907,-460.0,0.0002,2]
[372437030,1752645041917,-460.0,0.0002,2]
[372437031,1752645041927,-460.0,0.0002,2]
[372437032,1752645041936,-253.46,0.0002,2]
[372437033,1752645041947,-460.0,0.0002,2]
[372437034,1752645041958,-460.0,0.0002,2]
[372437035,1752645041968,-264.66,0.0002,2]
[372437036,1752645041979,-460.0,0.0002,2]
[372437037,1752645041989,-460.0,0.0002,2]
[372437038,1752645041999,-460.0,0.0002,2]
[372437039,1752645042010,-460.0,0.0002,2]
[372437040,1752645042020,-460.0,0.0002,2]
[372437041,1752645042029,-460.0,0.0002,2]
[372437042,1752645042039,-460.0,0.0002,2]
[372437043,1752645042049,-176.62,0.0002,2]
[372437044,1752645042058,-460.0,0.0002,2]
[372437045,1752645042068,-460.0,0.0002,2]
[372437046,1752645042077,-278.16496022,0.0002,2]
[372437047,1752645042087,-460.0,0.0002,2]
[372437048,1752645042096,-460.0,0.0002,2]
[372437049,1752645042106,-460.0,0.0002,2]
[372437050,1752645042116,-460.0,0.0002,2]
[372437051,1752645042126,-460.0,0.0002,2]
[372437052,1752645042135,-460.0,0.0002,2]
[372437053,1752645042145,-460.0,0.0002,2]
[372437054,1752645042155,-470.44305965,0.0002,2]
[372437055,1752645042165,-911.13,0.0002,2]
[372437056,1752645042175,-460.0,0.0002,2]
[372437057,1752645042185,-460.0,0.0002,2]
[372437058,1752645042194,-460.0,0.0002,2]
[372437059,1752645042204,-699.88,0.0002,2]
[372437060,1752645042218,-1915.13,0.0002,2]
[372437061,1752645042228,-460.0,0.0002,2]
[372437062,1752645042238,-896.68,0.0002,2]
[372437063,1752645042248,-382.49,0.0002,2]
[372437064,1752645042257,-460.0,0.0002,2]
[372437065,1752645042267,-460.0,0.0002,2]
[372437066,1752645042277,-1658.39,0.0002,2]
[372437067,1752645042287,-460.0,0.0002,2]
[372437068,1752645042296,-262.38,0.0002,2]
[372437069,1752645042306,-216.50903781,0.0002,2]
[372437070,1752645042316,-522.78,0.0002,2]
[372437071,1752645042326,-460.0,0.0002,2]
[372437072,1752645042335,-815.16,0.0002,2]
[372437073,1752645042344,-624.58,0.0002,2]
[372437074,1752645042354,-982.03,0.0002,2]
[372437075,1752645042363,-460.0,0.0002,2]
[372437076,1752645042372,-460.0,0.0002,2]
[372437077,1752645042382,-460.0,0.0002,2]
[372437078,1752645042391,-460.0,0.0002,2]
[372437079,1752645042401,-460.0,0.0002,2]
[372437080,1752645042411,-1112.63,0.0002,2]
[372437081,1752645042420,-460.0,0.0002,2]
[372437082,1752645042430,-877.97,0.0002,2]
[372437083,1752645042439,-646.57,0.0002,2]
[372437084,1752645042449,-1624.2,0.0002,2]
[372437085,1752645042459,-770.87,0.0002,2]
[372437086,1752645042468,-460.0,0.0002,2]
[372437087,1752645042478,-1510.65,0.0002,2]
[372437088,1752645042487,-9.13762059,0.0002,2]
[372437092,1752645042584,-4731.9752381,0.0002,2]
[372437099,1752645042817,-460.0,0.00019452,2]
[372437100,1752645042827,-176.44,0.00019726,2]
[372437101,1752645042837,-18967.82714131,0.0002,2]
[372437102,1752645042847,-2480.45,0.0002,2]
[372437103,1752645042856,-460.0,0.0002,2]
[372437104,1752645042866,-460.0,0.0002,2]
[372437105,1752645042875,-460.0,0.0002,2]
[372437106,1752645042885,-460.0,0.0002,2]
[372437107,1752645042895,-618.93,0.0002,2]
[372437108,1752645042904,-191.94697771,0.00020021,2]
[372437109,1752645042913,-500.0,0.00020021,2]
[372437110,1752645042923,-500.0,0.00020021,2]
[372437111,1752645042932,-1000.0,0.00020021,2]
[372437112,1752645042942,-9837.39871281,0.00020036,2]
[372437113,1752645042951,-460.0,0.00020273,2]
[372437114,1752645042961,-467.41780732,0.00020273,2]
[372437115,1752645042970,-460.0,0.00020273,2]